{"text_format":"1","workbook":"xlsx","n_sheets":1,"sheets":["Лист1"],"not_rendered":{"charts":0,"images":0,"macros":0,"external_links":0,"defined_names":2,"comments":0,"pivot_tables":0},"unopened":[],"bounds":{"document_bytes":16777216,"sheet_cells":100000,"rows_first":2000,"rows_last":500,"rows_between":2000,"halvings":0,"cell_chars":16384,"cell_head_chars":4096},"cells_cut":0,"cells_raw":0,"read":"whole","date_system":"1900"}

{"sheet":"Лист1","index":0,"n_rows":54,"n_cols":7,"rows_kept":54,"cut":false,"hidden":false,"merged":[[1,0,2,6],[0,3,0,6]]}
[null,null,null,"Приложение № 1 к Постановлению администрации Чеховского муниципального образования  № 28 от 26 .10.2011г.                                                                        "]
["Отчет об исполнении бюджета Чеховского муниципального образования по доходам за 9 месяцев 2011 г."]
[]
["1-Наименование показателя","Номер строки","2-Код строки","Код источника финансирования","Утверждено","Исполнено","% исполнения"]
["НАЛОГОВЫЕ И НЕНАЛОГОВЫЕ ДОХОДЫ","00010","010","000 1 00 00000 00 0000 000",77800,54490.28,{"$f":"F5/E5*100","v":70.038920308483284}]
["НАЛОГИ НА ПРИБЫЛЬ, ДОХОДЫ","00020","010","000 1 01 00000 00 0000 000",65000,44650.73,{"$f":"F6/E6*100","v":68.693430769230773}]
["Налог на доходы физических лиц","00150","010","000 1 01 02000 01 0000 110",65000,44650.73,68.693430769230773]
["Налог на доходы физических лиц с доходов, облагаемых по налоговой ставке, установленной пунктом 1 статьи 224 Налогового кодекса Российской Федерации","00170","010","000 1 01 02020 01 0000 110",65000,44650.73,68.693430769230773]
["Налог на доходы физических лиц с доходов, облагаемых по налоговой ставке, установленной пунктом 1 статьи 224 Налогового кодекса Российской Федерации, за исключением доходов, полученных физическими лицами, зарегистрированными в качестве индивидуальных","00180","010","000 1 01 02021 01 0000 110",65000,44650.73,68.693430769230773]
["НАЛОГИ НА СОВОКУПНЫЙ ДОХОД","00830","010","000 1 05 00000 00 0000 000",0,0,0]
["Единый сельскохозяйственный налог","00900","010","000 1 05 03000 01 0000 110",0,0,0]
["НАЛОГИ НА ИМУЩЕСТВО","00910","010","000 1 06 00000 00 0000 000",10000,8508.6200000000008,85.086200000000005]
["Налог на имущество физических лиц","00920","010","000 1 06 01000 00 0000 110",1000,604.69000000000005,60.47]
["Налог на имущество физических лиц, взимаемый по ставкам, применяемым к объектам налогообложения, расположенным в границах поселений","00960","010","000 1 06 01030 10 0000 110",1000,604.69000000000005,60.47]
["Земельный налог","01040","010","000 1 06 06000 00 0000 110",9000,7903.93,87.821444444444452]
["Земельный налог, взимаемый по ставкам, установленным в соответствии с подпунктом 1 пункта 1 статьи 394 Налогового кодекса Российской Федерации","01050","010","000 1 06 06010 00 0000 110",9000,7903.93,87.821444444444452]
["Земельный налог, взимаемый по ставкам, установленным в соответствии с подпунктом 1 пункта 1 статьи 394 Налогового кодекса Российской Федерации и применяемым к объектам налогообложения, расположенным в границах поселений","01090","010","000 1 06 06013 10 0000 110",9000,7903.93,87.821444444444452]
["ГОСУДАРСТВЕННАЯ ПОШЛИНА","01350","010","000 1 08 00000 00 0000 000",1000,400,40]
["Государственная пошлина за совершение нотариальных действий (за исключением действий, совершаемых консульскими учреждениями Российской Федерации)","01430","010","000 1 08 04000 01 0000 110",1000,400,40]
["Государственная пошлина за совершение нотариальных действий должностными лицами органов местного самоуправления, уполномоченными в соответствии с законодательными актами Российской Федерации на совершение нотариальных действий","01450","010","000 1 08 04020 01 0000 110",1000,400,40]
["ЗАДОЛЖЕННОСТЬ И ПЕРЕРАСЧЕТЫ ПО ОТМЕНЕННЫМ НАЛОГАМ, СБОРАМ И ИНЫМ ОБЯЗАТЕЛЬНЫМ ПЛАТЕЖАМ","01720","010","000 1 09 00000 00 0000 000",600,930.93,155.16]
["Налоги на имущество","02140","010","000 1 09 04000 00 0000 110",600,930.93,155.16]
["Земельный налог (по обязательствам, возникшим до 1 января 2006 года)","02190","010","000 1 09 04050 00 0000 110",600,930.93,155.16]
["Земельный налог (по обязательствам, возникшим до 1 января 2006 года), мобилизуемый на территориях поселений","02230","010","000 1 09 04050 10 0000 110",600,930.93,155.16]
["ДОХОДЫ ОТ ИСПОЛЬЗОВАНИЯ ИМУЩЕСТВА, НАХОДЯЩЕГОСЯ В ГОСУДАРСТВЕННОЙ И МУНИЦИПАЛЬНОЙ СОБСТВЕННОСТИ","02730","010","000 1 11 00000 00 0000 000",0,null,0]
["Доходы, получаемые в виде арендной либо иной платы за передачу в возмездное пользование государственного и муниципального имущества (за исключением имущества автономных учреждений, а также имущества государственных и муниципальных унитарных предприят","03220","010","000 1 11 05000 00 0000 120",0,null,0]
["Доходы, получаемые в виде арендной платы за земельные участки, государственная собственность на которые не разграничена, а также средства от продажи права на заключение договоров аренды указанных земельных участков","03230","010","000 1 11 05010 00 0000 120",0,null,0]
["Доходы, получаемые в виде арендной платы за земельные участки, государственная собственность на которые не разграничена и которые расположены в границах поселений, а также средства от продажи права на заключение договоров аренды указанных земельных у","03270","010","000 1 11 05010 10 0000 120",0,null,0]
["ДОХОДЫ ОТ ОКАЗАНИЯ ПЛАТНЫХ УСЛУГ И КОМПЕНСАЦИИ ЗАТРАТ ГОСУДАРСТВА","04490","010","000 1 13 00000 00 0000 000",1200,null,0]
["Прочие доходы от оказания платных услуг и компенсации затрат государства","04900","010","000 1 13 03000 00 0000 130",1200,null,0]
["Прочие доходы от оказания платных услуг получателями средств бюджетов поселений и компенсации затрат бюджетов поселений","04955","010","000 1 13 03050 10 0000 130",1200,null,0]
["БЕЗВОЗМЕЗДНЫЕ ПОСТУПЛЕНИЯ","08280","010","000 2 00 00000 00 0000 000",3202585.05,2385085.0499999998,74.473745826047605]
["БЕЗВОЗМЕЗДНЫЕ ПОСТУПЛЕНИЯ ОТ ДРУГИХ БЮДЖЕТОВ БЮДЖЕТНОЙ СИСТЕМЫ РОССИЙСКОЙ ФЕДЕРАЦИИ","08400","010","000 2 02 00000 00 0000 000",3202585.05,2385085.0499999998,74.473745826047605]
["Дотации бюджетам субъектов Российской Федерации и муниципальных образований","08410","010","000 2 02 01000 00 0000 151",1697394.69,1207294.69,71.126338329713988]
["Дотации на выравнивание бюджетной обеспеченности","08420","010","000 2 02 01001 00 0000 151",1634000,1143900,70.00611995104039]
[]
["Дотации бюджетам поселений на выравнивание бюджетной обеспеченности","08470","010","000 2 02 01001 10 0000 151",1634000,1143900,70.00611995104039]
["Дотации бюджетам на поддержку мер по обеспечению сбалансированности бюджетов",null,null,"000 2 02 01003 00 0000 151",63394.69,63394.69,100]
["Дотации бюджетов на поддержку мер по обеспечению сбалансированности бюджетов",null,null,"000 2 02 01003 10 0000 151 ",63394.69,63394.69,100]
["Субсидии бюджетам субъектов Российской Федерации и муниципальных образований (межбюджетные субсидии)","08740","010","000 2 02 02000 00 0000 151",1369000,1054500,77.027027027027032]
["Прочие субсидии","10564","010","000 2 02 02999 00 0000 151",1369000,1054500,77.027027027027032]
["Прочие субсидии бюджетам поселений","10590","010","000 2 02 02999 10 0000 151",1369000,1054500,77.027027027027032]
["Субвенции бюджетам субъектов Российской Федерации и муниципальных образований","10600","010","000 2 02 03000 00 0000 151",51300,38400,74.853801169590639]
["Субвенции бюджетам на осуществление первичного воинского учета на территориях, где отсутствуют военные комиссариаты","11410","010","000 2 02 03015 00 0000 151",51300,38400,74.853801169590639]
["Субвенции бюджетам поселений на осуществление первичного воинского учета на территориях, где отсутствуют военные комиссариаты","11460","010","000 2 02 03015 10 0000 151",51300,38400,74.853801169590639]
["Иные межбюджетные трансферты",null,null,"000 2 02 04000 00 0000 151",84890.36,84890.36,100]
["иные межбюджетные трансферты, передаваемые бюджетам",null,null,"000 2 02 04999 00 0000 151",84890.36,84890.36,100]
["Иные межбюджетные трансферты, передаваемые бюджетам поселений",null,null,"000 2 02 04999 10 0000 151",84890.36,84890.36,100]
["Доходы бюджета - Всего","15780","010","000 8 50 00000 00 0000 000",3280385.05,2439575.33,74.368566275474279]
["Суммы, подлежащие взаимоисключению","15790","020","000 8 70 00000 00 0000 000",1049285.05,751185.05,71.590179427411073]
["доходы от уплаты процентов, пеней и штрафных санкций по выданным бюджетным кредитам","15800","021","000 8 70 00000 00 0000 120",0,0,0]
["поступления от других бюджетов бюджетной системы Российской Федерации","15810","022","000 8 70 00000 00 0000 151",1049285.05,751185.05,71.590179427411073]
["доходы от возвратов субсидий, субвенций и иных межбюджетных трансфертов прошлых лет","15811","023","000 8 70 00000 00 0001 151",0,0,0]
["возврат неиспользованных остатков субсидий, субвенций и иных межбюджетных трансфертов прошлых лет","15812","024","000 8 70 00000 00 0002 151",0,0,0]